bitfinex/quotes_BTCUSD_20240101
["timestamp","ask_amount","ask_price","bid_price","bid_amount"]
[1704150960044,1.27292853,43694.0,43693.0,0.03115]
[1704150960268,1.73116685,43694.0,43693.0,0.03115]
[1704150960557,1.73116832,43694.0,43693.0,0.03115]
[1704150960917,1.35139911,43694.0,43693.0,0.03115]
[1704150961118,1.25239911,43694.0,43693.0,0.03115]
[1704150961325,1.36159486,43694.0,43693.0,0.03115]
[1704150961657,1.63216699,43694.0,43693.0,0.03115]
[1704150961860,1.33425172,43694.0,43693.0,0.03115]
[1704150962519,0.79322137,43694.0,43693.0,0.12443685]
[1704150962899,0.438662,43694.0,43693.0,0.12443685]
[1704150963109,0.021,43694.0,43693.0,0.12443685]
[1704150963532,0.021,43694.0,43693.0,0.35765396]
[1704150963741,0.021,43694.0,43693.0,0.12343685]
[1704150963940,0.007,43694.0,43693.0,0.12343685]
[1704150964143,0.007,43694.0,43693.0,0.12443685]
[1704150964347,0.01,43694.0,43693.0,0.12343685]
[1704150964759,0.016,43694.0,43693.0,0.12443685]
[1704150964978,0.091629,43706.0,43697.0,0.1]
[1704150965191,0.091629,43706.0,43702.0,0.1]
[1704150965400,0.048,43712.0,43703.0,0.09328685]
[1704150965614,0.048,43712.0,43704.0,0.2146]
[1704150965615,0.59925211,43712.0,43704.0,0.2146]
[1704150965825,0.422621,43711.0,43705.0,0.09328685]
[1704150966033,0.1,43713.0,43705.0,0.09328685]
[1704150966034,0.12795274,43714.0,43705.0,0.09328685]
[1704150966239,0.04614,43712.0,43705.0,0.09328685]
[1704150966663,0.006,43712.0,43705.0,0.09328685]
[1704150966871,0.051,43712.0,43705.0,0.09328685]
[1704150967081,0.69086111,43713.0,43705.0,0.09328685]
[1704150967536,0.007,43712.0,43705.0,0.42650396]
[1704150967749,0.007,43712.0,43706.0,0.33321711]
[1704150967750,0.006,43712.0,43706.0,0.33321711]
[1704150967963,0.006,43712.0,43707.0,0.09328685]
[1704150968199,0.007,43712.0,43707.0,0.09328685]
[1704150968430,0.006,43712.0,43707.0,0.09328685]
[1704150969786,0.091607,43718.0,43707.0,0.09328685]
[1704150970119,0.001,43712.0,43707.0,0.09728685]
[1704150970604,0.366008,43715.0,43707.0,0.09328685]
[1704150970894,0.14832995,43712.0,43707.0,0.09828685]
[1704150971103,0.366063,43709.0,43707.0,0.09828685]
[1704150971322,0.09182454,43715.0,43707.0,0.09828685]
[1704150971531,0.366025,43713.0,43707.0,0.09828685]
[1704150971999,0.366025,43713.0,43707.0,0.09328685]
[1704150973116,0.09182454,43715.0,43707.0,0.09428685]
[1704150973378,0.013,43713.0,43707.0,0.09428685]
[1704150973841,0.366062,43709.0,43707.0,0.09428685]
[1704150974074,0.366062,43709.0,43704.0,0.2146]
[1704150974322,0.366062,43709.0,43707.0,0.001]
[1704150974577,0.366065,43708.0,43707.0,0.001]
[1704150974792,0.366065,43708.0,43704.0,0.2146]
[1704150975220,0.366065,43708.0,43704.0,0.30788685]
[1704150975642,0.366065,43708.0,43707.0,0.001]
[1704150975855,0.366065,43708.0,43707.0,0.09428685]
[1704150976059,0.366065,43708.0,43707.0,0.001]
[1704150976646,0.59928211,43708.0,43704.0,0.2146]
[1704150976870,0.71295259,43714.0,43705.0,0.09328685]
[1704150976871,0.366079,43707.0,43705.0,0.09328685]
[1704150977089,0.006,43708.0,43705.0,0.09328685]
[1704150978274,0.366056,43710.0,43705.0,0.09328685]
[1704150978611,0.004,43707.0,43705.0,0.09328685]
[1704150979835,0.001,43708.0,43706.0,0.23321711]
[1704150979963,0.001,43708.0,43707.0,0.09328685]
[1704150980168,0.009,43710.0,43707.0,0.09328685]
[1704150980370,0.01,43710.0,43707.0,0.14104685]
[1704150980693,0.001,43710.0,43707.0,0.09328685]
[1704150981686,0.6584,43714.0,43707.0,0.09328685]
[1704150982062,0.001,43708.0,43707.0,0.09328685]
[1704150982216,0.36599,43717.0,43707.0,0.09328685]
[1704150983151,0.36599,43717.0,43707.0,0.09828685]
[1704150983745,0.36599,43717.0,43707.0,0.09328685]
[1704150983971,0.37799,43717.0,43707.0,0.09428685]
[1704150984173,0.37799,43717.0,43708.0,0.217]
[1704150984420,0.36599,43717.0,43709.0,0.09328685]
[1704150984589,0.37899,43717.0,43709.0,0.09328685]
[1704150985117,0.37999,43717.0,43709.0,0.09328685]
[1704150985329,0.37899,43717.0,43709.0,0.09328685]
[1704150985541,0.1329077,43716.0,43709.0,0.09328685]
[1704150985711,0.366018,43714.0,43709.0,0.09328685]
[1704150986468,0.366018,43714.0,43708.0,0.217]
[1704150986672,0.366024,43713.0,43708.0,0.217]
[1704150987467,0.366024,43713.0,43708.0,0.31028685]
[1704150987669,0.366024,43713.0,43708.0,0.217]
[1704150987933,0.366024,43713.0,43708.0,0.31128685]
[1704150987934,0.376024,43713.0,43708.0,0.31128685]
[1704150988142,0.376024,43713.0,43708.0,0.218]
[1704150988345,0.14401234,43712.0,43708.0,0.218]
[1704150988526,0.14401234,43712.0,43709.0,0.001]
[1704150988760,0.14401234,43712.0,43708.0,0.218]
[1704150989183,0.14401234,43712.0,43708.0,0.217]
[1704150989397,0.51005034,43712.0,43708.0,0.001]
[1704150989609,0.366043,43711.0,43697.0,0.294796]
[1704150989811,0.14501234,43712.0,43697.0,0.294796]
[1704150989812,0.366049,43710.0,43698.0,0.09328685]
[1704150990239,0.48580204,43712.0,43708.0,0.001]
[1704150990429,0.0447,43711.0,43709.0,0.09328685]
[1704150990636,0.366053,43710.0,43709.0,0.09328685]
[1704150991047,0.366053,43710.0,43697.0,0.33321711]
[1704150991253,0.366053,43710.0,43698.0,0.09328685]
[1704150991657,0.366053,43710.0,43699.0,0.2254]
[1704150991862,0.366053,43710.0,43700.0,0.09328685]
[1704150992894,0.367053,43710.0,43700.0,0.09328685]
[1704150993240,0.04536,43709.0,43700.0,0.09328685]
[1704150993500,0.372053,43710.0,43700.0,0.09328685]
[1704150993725,0.366053,43710.0,43700.0,0.09328685]
[1704150994168,0.369053,43710.0,43700.0,0.09328685]
[1704150994371,0.1867,43709.0,43700.0,0.09328685]
[1704150995175,0.1867,43709.0,43700.0,0.32650396]
[1704150995373,0.1867,43712.0,43700.0,0.32650396]
[1704150995589,0.001,43709.0,43700.0,0.32750396]
[1704150995800,0.007,43710.0,43700.0,0.32750396]
[1704150995969,0.1867,43712.0,43700.0,0.32650396]
[1704150996185,0.001,43709.0,43700.0,0.32750396]
[1704150996384,0.007,43709.0,43700.0,0.32750396]
[1704150996758,0.23152,43712.0,43700.0,0.32650396]
[1704150996996,0.1867,43712.0,43700.0,0.32750396]
[1704150997210,0.007,43710.0,43700.0,0.32750396]
[1704150998185,0.001,43709.0,43700.0,0.32750396]
[1704150998411,0.007,43710.0,43700.0,0.32750396]
[1704150998611,0.1867,43712.0,43700.0,0.32650396]
[1704150998908,0.001,43710.0,43700.0,0.32650396]
[1704150999107,0.006,43709.0,43700.0,0.32650396]
[1704150999310,0.001,43709.0,43700.0,0.32650396]
[1704150999513,0.1867,43712.0,43700.0,0.32650396]
[1704150999720,0.01,43712.0,43703.0,0.466102]
[1704150999937,0.01,43712.0,43707.0,0.366072]
[1704151000361,0.1926,43716.0,43708.0,0.09328685]
[1704151000548,0.1926,43719.0,43709.0,0.1]
[1704151000784,0.6584,43720.0,43710.0,0.09328685]
[1704151001419,0.71295259,43720.0,43710.0,0.09328685]
[1704151001645,0.001,43712.0,43710.0,0.09328685]
[1704151001823,0.6584,43720.0,43710.0,0.09328685]
[1704151002053,0.002,43712.0,43710.0,0.09528685]
[1704151002478,0.002,43712.0,43710.0,0.09328685]
[1704151002868,0.6584,43720.0,43710.0,0.09328685]
[1704151003277,0.001,43712.0,43711.0,0.89925711]
[1704151003487,0.001,43712.0,43711.0,0.89254396]
[1704151003697,0.001,43712.0,43711.0,0.69254396]
[1704151004132,0.001,43712.0,43711.0,0.32650396]
[1704151004343,0.001,43712.0,43711.0,0.69254396]
[1704151004565,0.001,43712.0,43711.0,0.99254396]
[1704151004915,0.001,43712.0,43711.0,0.69254396]
[1704151005141,0.001,43712.0,43708.0,0.2995]
[1704151005142,0.14222547,43715.0,43708.0,0.1995]
[1704151005367,0.05455259,43712.0,43711.0,0.014]
[1704151005578,0.08182454,43712.0,43711.0,0.014]
[1704151005776,0.13637424,43712.0,43711.0,0.014]
[1704151006012,0.13637424,43712.0,43702.0,0.2001]
[1704151006013,0.56232563,43712.0,43702.0,0.2001]
[1704151006210,0.05471506,43705.0,43697.0,0.11]
[1704151006426,0.05471506,43705.0,43698.0,0.23321711]
[1704151007259,0.05471506,43707.0,43698.0,0.32650396]
[1704151007471,0.05471506,43707.0,43699.0,0.09328685]
[1704151008355,0.05471506,43705.0,43699.0,0.09328685]
[1704151008558,0.05471506,43705.0,43699.0,0.09528685]
[1704151008755,0.05471506,43705.0,43699.0,0.002]
[1704151009368,0.05471506,43704.0,43699.0,0.003]
[1704151009563,0.05471506,43703.0,43699.0,0.008]
[1704151009814,0.05471506,43703.0,43699.0,0.005]
[1704151010144,0.05471506,43703.0,43699.0,0.011]
[1704151010684,0.05471506,43703.0,43699.0,0.10428685]
[1704151010960,0.05471506,43703.0,43700.0,0.09328685]
[1704151011751,0.05471506,43701.0,43700.0,0.09328685]
[1704151012178,0.05480217,43701.0,43700.0,0.09328685]
[1704151012357,0.05480217,43701.0,43700.0,0.09628685]
[1704151012562,0.08207259,43702.0,43700.0,0.09628685]
[1704151012563,0.05480217,43702.0,43700.0,0.09728685]
[1704151012850,0.0547973,43702.0,43701.0,0.09328685]
[1704151013371,0.0547973,43703.0,43701.0,0.09328685]
[1704151013905,0.0547973,43702.0,43701.0,0.09328685]
[1704151014126,0.0547973,43703.0,43701.0,0.09328685]
[1704151014994,0.0547973,43703.0,43701.0,0.09928685]
[1704151015200,0.0547973,43703.0,43701.0,0.09328685]
[1704151015673,0.0547973,43703.0,43701.0,0.10428685]
[1704151015902,0.13678765,43707.0,43704.0,0.1]
[1704151015903,0.0547973,43707.0,43704.0,0.1]
[1704151016119,0.08207259,43708.0,43705.0,0.32650396]
[1704151016120,0.0547973,43708.0,43705.0,0.32650396]
[1704151016339,0.0547973,43710.0,43705.0,0.32650396]
[1704151016753,0.0547973,43711.0,43705.0,0.32650396]
[1704151017191,0.0547973,43712.0,43705.0,0.32650396]
[1704151017406,0.08207259,43713.0,43705.0,0.32650396]
[1704151017407,0.0547973,43711.0,43705.0,0.32650396]
[1704151017628,0.0547973,43712.0,43705.0,0.23321711]
[1704151017844,0.0547973,43711.0,43707.0,0.1]
[1704151018058,0.0547973,43713.0,43710.0,0.1]
[1704151018265,0.0547973,43717.0,43711.0,0.23321711]
[1704151018490,0.0547717,43716.0,43712.0,0.09328685]
[1704151018760,0.0547717,43716.0,43711.0,0.23321711]
[1704151019496,0.0547717,43716.0,43711.0,0.32650396]
[1704151020130,0.0577717,43716.0,43711.0,0.32650396]
[1704151020280,0.0577717,43716.0,43711.0,0.23321711]
[1704151020719,0.003,43716.0,43711.0,0.23321711]
[1704151021134,0.0547717,43717.0,43711.0,0.23321711]
[1704151021586,0.0547717,43717.0,43711.0,0.33250396]
[1704151021794,0.0547717,43717.0,43712.0,0.09328685]
[1704151022647,0.0547717,43718.0,43712.0,0.09328685]
[1704151022850,0.0547717,43717.0,43712.0,0.09328685]
[1704151023128,0.0547717,43718.0,43712.0,0.09328685]
[1704151023685,0.0547717,43718.0,43712.0,0.09728685]
[1704151024240,0.0547717,43718.0,43712.0,0.10028685]
[1704151024657,0.0547717,43718.0,43712.0,0.09728685]
[1704151024871,0.0547717,43718.0,43712.0,0.09428685]
[1704151025041,0.06692926,43719.0,43712.0,0.09428685]
[1704151025242,0.06692926,43719.0,43712.0,0.09628685]
[1704151025837,0.37856588,43720.0,43712.0,0.09428685]
[1704151026044,0.37856588,43720.0,43712.0,0.09528685]
[1704151026492,0.37856588,43720.0,43712.0,0.09428685]
[1704151026698,0.37856588,43720.0,43712.0,0.09328685]
[1704151027136,0.37956588,43720.0,43712.0,0.09328685]
[1704151028507,0.38156588,43720.0,43712.0,0.09328685]
[1704151032160,0.05766,43719.0,43712.0,0.09328685]
[1704151032516,0.43758447,43719.0,43712.0,0.09328685]
[1704151032717,0.37992447,43718.0,43712.0,0.09328685]
[1704151032880,0.42696447,43718.0,43712.0,0.09328685]
[1704151033096,0.15657508,43718.0,43707.0,0.1986]
[1704151033494,0.15657508,43718.0,43707.0,0.52510396]
[1704151033694,0.10953508,43718.0,43708.0,0.09328685]
[1704151033944,0.43213728,43719.0,43708.0,0.09328685]
[1704151034137,0.0820879,43717.0,43708.0,0.09328685]
[1704151034565,0.15465508,43718.0,43708.0,0.09328685]
[1704151034566,0.0820879,43716.0,43708.0,0.09328685]
[1704151034778,0.0820879,43717.0,43712.0,0.001]
[1704151034986,0.05472589,43716.0,43713.0,0.09328685]
[1704151035185,0.05472589,43716.0,43712.0,0.09328685]
[1704151036060,0.05472589,43716.0,43712.0,0.003]
[1704151036264,0.05472589,43716.0,43708.0,0.01]
[1704151036415,0.05472589,43716.0,43709.0,0.42650396]
[1704151036624,0.05472589,43716.0,43710.0,0.366046]
[1704151036825,0.1906,43717.0,43711.0,0.23321711]
[1704151036826,0.24532589,43717.0,43711.0,0.23321711]
[1704151037023,0.24532589,43717.0,43712.0,0.09328685]
[1704151037596,0.24532589,43717.0,43712.0,0.09728685]
[1704151037826,0.24532589,43717.0,43712.0,0.09328685]
[1704151038477,0.1906,43717.0,43712.0,0.09828685]
[1704151038686,0.1906,43717.0,43712.0,0.10128685]
[1704151038883,0.1906,43717.0,43712.0,0.09628685]
[1704151039717,0.1906,43717.0,43712.0,0.10028685]
[1704151040110,0.24532589,43717.0,43712.0,0.10028685]
[1704151040312,0.1906,43717.0,43712.0,0.10028685]
[1704151045986,0.26885632,43722.0,43713.0,0.33321711]
[1704151045987,0.05472589,43720.0,43713.0,0.33321711]
[1704151046194,0.05472589,43721.0,43715.0,0.366004]
[1704151046521,0.05472589,43723.0,43716.0,0.09328685]
[1704151046728,0.0820879,43724.0,43716.0,0.09328685]
[1704151046729,0.05472589,43722.0,43716.0,0.09328685]
[1704151046880,0.05472589,43723.0,43716.0,0.28968685]
[1704151047495,0.05472589,43722.0,43716.0,0.28968685]
[1704151047900,0.002,43720.0,43716.0,0.28968685]
[1704151048325,0.05472589,43722.0,43716.0,0.28968685]
[1704151048530,0.05972589,43722.0,43716.0,0.28968685]
[1704151048750,0.005,43721.0,43716.0,0.28968685]
[1704151049442,0.002,43720.0,43716.0,0.1964]
[1704151049824,0.005,43720.0,43716.0,0.1964]
[1704151050021,0.002,43720.0,43716.0,0.1964]
[1704151050659,0.05472589,43722.0,43716.0,0.1964]
[1704151050886,0.004,43721.0,43716.0,0.28968685]
[1704151051087,0.004,43721.0,43716.0,0.1964]
[1704151051291,0.05472589,43722.0,43716.0,0.1964]
[1704151051649,0.001,43720.0,43716.0,0.2054]
[1704151051831,0.004,43720.0,43716.0,0.2054]
[1704151052050,0.05472589,43722.0,43716.0,0.1964]
[1704151052249,0.284675,43723.0,43716.0,0.1964]
[1704151052457,0.284675,43723.0,43716.0,0.2114]
[1704151052458,0.001,43722.0,43716.0,0.2114]
[1704151052680,0.05572589,43722.0,43716.0,0.2044]
[1704151053087,0.001,43720.0,43716.0,0.2144]
[1704151053308,0.05572589,43722.0,43716.0,0.2044]
[1704151053518,0.05572589,43722.0,43716.0,0.570398]
[1704151053716,0.05472589,43722.0,43716.0,0.569398]
[1704151053921,0.31203701,43723.0,43716.0,0.574398]
[1704151053922,0.15472589,43723.0,43716.0,0.574398]
[1704151054538,0.05472589,43722.0,43716.0,0.569398]
[1704151054744,0.05572589,43722.0,43716.0,0.577398]
[1704151054925,0.05572589,43722.0,43716.0,0.570398]
[1704151055493,0.05472589,43721.0,43716.0,0.570398]
[1704151055692,0.05472589,43721.0,43716.0,0.562398]
[1704151055896,0.05472589,43722.0,43716.0,0.569398]
[1704151056375,0.15472589,43723.0,43716.0,0.569398]
[1704151056525,0.15472589,43723.0,43716.0,0.66268485]
[1704151057063,0.05472589,43722.0,43716.0,0.66768485]
[1704151057438,0.05472589,43722.0,43717.0,0.09328685]
[1704151058409,0.05472589,43721.0,43717.0,0.10028685]
[1704151059013,0.05472589,43721.0,43717.0,0.10628685]
[1704151059462,0.05472589,43721.0,43718.0,0.24321711]
[1704151059663,0.1,43723.0,43719.0,0.19328685]
[1704151059884,0.1,43723.0,43720.0,0.23321711]
[1704151060088,0.1,43723.0,43721.0,0.09328685]
[1704151060229,0.1,43723.0,43721.0,0.32650396]
[1704151060457,0.1,43723.0,43721.0,0.23321711]
[1704151061489,0.1,43723.0,43721.0,0.002]
[1704151062253,0.1,43723.0,43721.0,0.003]
[1704151063425,0.1,43723.0,43721.0,0.09628685]
[1704151063831,0.1,43723.0,43722.0,0.09328685]
[1704151064721,0.1,43723.0,43722.0,0.62650396]
[1704151064923,0.22850327,43735.0,43726.0,0.11]
[1704151064924,0.14629989,43735.0,43726.0,0.11]
[1704151065095,0.11386978,43745.0,43727.0,0.79240896]
[1704151065096,0.1957,43738.0,43727.0,0.79240896]
[1704151065298,0.13692927,43740.0,43727.0,1.04356896]
[1704151065520,0.1957,43739.0,43728.0,0.0516]
[1704151065695,0.1957,43739.0,43731.0,0.1]
[1704151065892,0.1957,43739.0,43731.0,0.69908811]
[1704151066116,0.10528563,43739.0,43731.0,0.69908811]
[1704151066639,0.0265,43741.0,43732.0,0.04434]
[1704151066840,0.0265,43741.0,43732.0,0.24754]
[1704151067065,0.0265,43741.0,43732.0,0.2032]
[1704151067219,0.0265,43741.0,43732.0,0.24808]
[1704151067757,0.001,43739.0,43732.0,0.24808]
[1704151067970,0.0265,43741.0,43732.0,0.24808]
[1704151068190,0.0265,43741.0,43733.0,0.365855]
[1704151068453,0.0265,43741.0,43734.0,0.365842]
[1704151068888,0.0265,43741.0,43735.0,0.365839]
[1704151070958,0.0275,43741.0,43735.0,0.365839]
[1704151071204,0.0295,43741.0,43735.0,0.365839]
[1704151071941,0.0295,43741.0,43735.0,0.365312]
[1704151072142,0.0285,43741.0,43735.0,0.365312]
[1704151072345,0.0265,43741.0,43737.0,0.365821]
[1704151072958,0.0265,43741.0,43736.0,0.2192]
[1704151073376,0.0275,43741.0,43736.0,0.2192]
[1704151073994,0.0275,43741.0,43736.0,0.2663]
[1704151074200,0.0265,43741.0,43737.0,0.004]
[1704151074372,0.0265,43741.0,43736.0,0.2663]
[1704151074774,0.0265,43741.0,43738.0,0.36581]
[1704151075199,0.0265,43741.0,43739.0,0.365806]
[1704151075402,0.0265,43741.0,43740.0,0.365797]
[1704151075610,0.0265,43741.0,43740.0,0.410377]
[1704151075820,0.0265,43752.0,43745.0,0.1]
[1704151076034,0.0265,43752.0,43746.0,0.45902985]
[1704151076272,0.0265,43752.0,43746.0,0.32650396]
[1704151076497,0.0265,43762.0,43760.0,0.1]
[1704151076723,0.0265,43762.0,43761.0,0.45890885]
[1704151076946,0.0265,43762.0,43761.0,0.365622]
[1704151077153,0.0265,43762.0,43760.0,0.23321711]
[1704151077392,0.0265,43762.0,43756.0,0.1]
[1704151077393,0.0265,43762.0,43756.0,0.41582]
[1704151077617,0.63558894,43770.0,43756.0,0.41582]
[1704151077618,0.07705656,43770.0,43756.0,0.36566]
[1704151077837,0.07705656,43770.0,43757.0,0.04722]
[1704151077838,0.365562,43769.0,43757.0,0.04722]
[1704151078063,0.31027367,43770.0,43761.0,0.002]
[1704151078064,0.07705656,43770.0,43761.0,0.002]
[1704151078277,0.07705656,43770.0,43759.0,0.1]
[1704151078460,0.365538,43772.0,43760.0,0.59884411]
[1704151078663,0.365538,43772.0,43761.0,0.003]
[1704151079096,0.004,43769.0,43761.0,0.003]
[1704151079382,0.004,43769.0,43760.0,0.64528411]
[1704151080420,0.011,43769.0,43760.0,0.64528411]
[1704151080619,0.011,43769.0,43760.0,0.59884411]
[1704151080851,0.007,43769.0,43760.0,0.59884411]
[1704151081255,0.007,43769.0,43760.0,0.59984011]
[1704151081888,0.007,43769.0,43760.0,0.59884011]
[1704151082088,0.007,43769.0,43760.0,0.64498011]
[1704151082390,0.004,43769.0,43760.0,0.64348011]
[1704151082801,0.004,43769.0,43761.0,0.365621]
[1704151083009,0.004,43769.0,43762.0,0.365607]
[1704151083975,0.365536,43772.0,43762.0,0.365607]
[1704151084183,0.19719091,43775.0,43762.0,0.365607]
[1704151084392,0.365534,43772.0,43762.0,0.602407]
[1704151084799,0.001,43769.0,43762.0,0.602407]
[1704151084954,0.365534,43772.0,43762.0,0.602407]
[1704151085272,0.299534,43772.0,43762.0,0.602407]
[1704151086553,0.299534,43772.0,43763.0,0.04566]
[1704151086751,0.303534,43772.0,43763.0,0.04566]
[1704151087352,0.299534,43772.0,43762.0,0.602407]
[1704151087554,0.23321711,43774.0,43762.0,0.2368]
[1704151087741,0.369534,43772.0,43762.0,0.602407]
[1704151088132,0.365534,43772.0,43762.0,0.602407]
[1704151088391,0.19719091,43775.0,43768.0,0.01]
[1704151088392,0.00909091,43775.0,43768.0,0.01]
[1704151088596,0.00909091,43775.0,43772.0,0.365528]
[1704151089518,0.01909091,43775.0,43772.0,0.365528]
[1704151089953,0.00909091,43775.0,43772.0,0.365528]
[1704151090156,0.01309091,43775.0,43772.0,0.366528]
[1704151090355,0.01209091,43775.0,43774.0,0.365513]
[1704151090769,0.01309091,43775.0,43774.0,0.365513]
[1704151091368,0.01309091,43775.0,43771.0,0.365533]
[1704151091537,0.01209091,43775.0,43771.0,0.365533]
[1704151091745,0.01209091,43775.0,43772.0,0.365529]
[1704151092169,0.00909091,43775.0,43774.0,0.365513]
[1704151092571,0.00909091,43775.0,43774.0,0.59873011]
[1704151092772,0.00909091,43775.0,43774.0,0.66221011]
[1704151092975,0.00909091,43775.0,43774.0,0.65921011]
[1704151093182,0.00909091,43775.0,43774.0,0.66321011]
[1704151093386,0.00909091,43775.0,43774.0,0.66921011]
[1704151093752,0.00909091,43775.0,43774.0,0.66321011]
[1704151093952,0.00909091,43775.0,43774.0,0.66621011]
[1704151094536,0.00909091,43775.0,43774.0,0.76621011]
[1704151094945,0.00909091,43775.0,43774.0,0.87621011]
[1704151095155,0.00909091,43775.0,43774.0,1.27621011]
[1704151095355,0.00909091,43775.0,43774.0,1.30225011]
[1704151095981,0.00909091,43775.0,43774.0,1.29825011]
[1704151096185,0.0265,43785.0,43783.0,0.1]
[1704151096415,0.0265,43785.0,43784.0,0.36543]
[1704151096614,0.0265,43785.0,43784.0,0.41361]
[1704151096824,0.0265,43785.0,43784.0,0.36543]
[1704151097238,0.0265,43785.0,43784.0,0.89886675]
[1704151097446,0.0265,43785.0,43784.0,0.79886675]
[1704151097651,0.0265,43785.0,43784.0,0.65360711]
[1704151098072,0.0265,43785.0,43784.0,0.42039]
[1704151099118,0.0265,43785.0,43784.0,0.90386675]
[1704151099324,0.0265,43785.0,43784.0,0.80386675]
[1704151099741,0.0265,43785.0,43784.0,0.65860711]
[1704151099937,0.0265,43785.0,43784.0,0.43039]
[1704151100787,0.08124036,43785.0,43784.0,0.06496]
[1704151100986,0.08124036,43785.0,43784.0,0.01]
[1704151100987,0.0265,43785.0,43784.0,0.01]
[1704151101187,0.08124036,43785.0,43784.0,0.01]
[1704151101890,0.08124036,43785.0,43784.0,0.005]
[1704151102114,0.08224036,43785.0,43784.0,0.005]
[1704151102781,0.08124036,43785.0,43784.0,0.005]
[1704151103006,0.08424036,43785.0,43784.0,0.005]
[1704151104039,0.05474036,43783.0,43780.0,0.01]
[1704151104904,0.05474036,43784.0,43780.0,0.01]
[1704151105111,0.08124036,43785.0,43780.0,0.01]
[1704151105313,0.0265,43785.0,43780.0,0.011]
[1704151105515,0.05474036,43783.0,43780.0,0.011]
[1704151105713,0.05474036,43783.0,43780.0,0.001]
[1704151105969,0.05474036,43782.0,43776.0,0.2325]
[1704151106420,0.05474036,43781.0,43776.0,0.2325]
[1704151107805,0.05474036,43781.0,43780.0,0.001]
[1704151108012,0.05674036,43781.0,43780.0,0.001]
[1704151108227,0.05674036,43781.0,43776.0,0.2325]
[1704151108429,0.05474036,43780.0,43776.0,0.2325]
[1704151110205,0.05474036,43780.0,43777.0,0.04452]
[1704151110826,0.005,43780.0,43777.0,0.04452]
[1704151111033,0.003,43780.0,43777.0,0.437128]
[1704151111245,0.0265,43785.0,43777.0,0.437128]
[1704151111459,0.002,43780.0,43778.0,0.0633]
[1704151111677,0.005,43780.0,43778.0,0.0633]
[1704151111898,0.005,43780.0,43777.0,0.365488]
[1704151112079,0.05474036,43780.0,43776.0,0.2325]
[1704151112339,0.05474036,43780.0,43777.0,0.04576]
[1704151112943,0.05474036,43782.0,43777.0,0.04576]
[1704151113149,0.05474036,43780.0,43777.0,0.04576]
[1704151113507,0.05474036,43780.0,43777.0,0.04476]
[1704151113719,0.05574036,43780.0,43777.0,0.04476]
[1704151113955,0.05474036,43778.0,43777.0,0.04476]
[1704151114153,0.001,43780.0,43777.0,0.04476]
[1704151114154,0.05474036,43780.0,43777.0,0.04476]
[1704151114331,0.001,43780.0,43777.0,0.04476]
[1704151114537,0.05674036,43780.0,43777.0,0.04476]
[1704151114961,0.002,43780.0,43779.0,0.365472]
[1704151115381,0.002,43780.0,43779.0,0.544992]
[1704151115625,0.04130639,43796.0,43786.0,0.11]
[1704151115825,0.11110818,43800.0,43798.0,0.14525964]
[1704151115826,0.03167167,43800.0,43798.0,0.14525964]
[1704151116040,0.03167167,43800.0,43799.0,0.365305]
[1704151116358,0.03167167,43800.0,43799.0,0.440305]
[1704151116775,0.23961719,43814.0,43799.0,0.440305]
[1704151116933,0.23321711,43813.0,43799.0,0.440305]
[1704151117132,0.365199,43812.0,43799.0,0.440305]
[1704151117362,0.23321711,43813.0,43800.0,0.08004]
[1704151118343,0.43321711,43812.0,43800.0,0.08004]
[1704151118571,0.43321711,43812.0,43799.0,0.002]
[1704151118974,0.41821711,43812.0,43799.0,0.002]
[1704151119645,0.08130195,43811.0,43798.0,0.05064]
[1704151119847,0.23321711,43811.0,43798.0,0.05064]
[1704151119960,0.23321711,43811.0,43798.0,0.07626]
[1704151120160,0.23890458,43813.0,43799.0,0.23321711]
[1704151120413,0.39081974,43813.0,43799.0,0.23321711]
[1704151120589,0.32051906,43812.0,43800.0,0.003]
[1704151120787,0.52051906,43812.0,43799.0,0.05146]
[1704151120989,0.001,43811.0,43798.0,0.05982]
[1704151121162,0.23321711,43810.0,43798.0,0.05982]
[1704151121637,0.31451906,43810.0,43797.0,0.2473]
[1704151121838,0.31451906,43810.0,43796.0,0.01]
[1704151122258,0.31451906,43810.0,43797.0,0.01]
[1704151122259,0.59843011,43810.0,43797.0,0.01]
[1704151122457,0.67973206,43810.0,43797.0,0.05644]
[1704151122660,0.59843011,43810.0,43798.0,0.04668]
[1704151122874,0.59843011,43810.0,43797.0,0.01]
[1704151123091,0.59843011,43810.0,43792.0,0.2266]
[1704151123092,0.365223,43809.0,43798.0,0.04476]
[1704151123295,0.23321711,43808.0,43795.0,0.01]
[1704151123521,0.59844811,43808.0,43796.0,0.0522]
[1704151123730,0.59844811,43808.0,43797.0,0.015]
[1704151123932,0.59844811,43808.0,43797.0,0.01]
[1704151124176,0.59844811,43808.0,43798.0,0.04722]
[1704151124395,0.1,43804.0,43793.0,0.05328]
[1704151124624,0.23321711,43803.0,43788.0,0.0558]
[1704151124824,0.2,43800.0,43797.0,0.001]
[1704151125030,0.23321711,43799.0,43797.0,0.001]
[1704151125252,0.23321711,43799.0,43786.0,0.01]
[1704151125253,0.365313,43798.0,43786.0,0.01]
[1704151125481,0.31451906,43799.0,43784.0,0.2378]
[1704151125482,0.08130195,43799.0,43789.0,0.01]
[1704151125688,0.1859,43806.0,43791.0,0.01]
[1704151125894,0.365269,43804.0,43791.0,0.375366]
[1704151126297,0.371269,43804.0,43793.0,0.001]
[1704151126876,0.365273,43803.0,43792.0,0.07722]
[1704151127091,0.365273,43803.0,43793.0,0.001]
[1704151127277,0.24026217,43806.0,43793.0,0.365348]
[1704151127425,0.001,43804.0,43794.0,0.33321711]
[1704151127625,0.004,43804.0,43795.0,0.365332]
[1704151127835,0.004,43804.0,43795.0,0.781052]
[1704151128034,0.01597252,43806.0,43796.0,0.07374]
[1704151128590,0.01597252,43806.0,43796.0,0.16806]
[1704151128791,0.01597252,43806.0,43797.0,0.07386]
[1704151129072,0.44653895,43808.0,43797.0,0.07386]
[1704151129073,0.365237,43808.0,43797.0,0.07386]